[Event "*** Titled Tuesday Blitz"]
[Site "Chess.com"]
[Date "2020.10.20"]
[Round "7"]
[White "mishanick"]
[Black "WIDBIFS"]
[Result "1/2-1/2"]
[WhiteElo "2993"]
[BlackElo "2769"]
[TimeControl "180+1"]
[EndTime "11:21:19 PDT"]
[Termination "Game drawn - insufficient material"]

1. d4 {[%clk 0:03:00.9]} 1... Nf6 {[%clk 0:03:00.3]} 2. c4 {[%clk 0:03:01.1]}
2... g6 {[%clk 0:03:00.8]} 3. Nc3 {[%clk 0:03:01.4]} 3... Bg7 {[%clk 0:03:01.2]}
4. e4 {[%clk 0:03:01.5]} 4... d6 {[%clk 0:03:01.6]} 5. Be2 {[%clk 0:03:00.8]}
5... O-O {[%clk 0:03:01.8]} 6. Be3 {[%clk 0:03:00.7]} 6... Na6 {[%clk
0:02:58.9]} 7. Nf3 {[%clk 0:02:59.6]} 7... e5 {[%clk 0:02:58.9]} 8. d5 {[%clk
0:02:59.6]} 8... Nc5 {[%clk 0:02:58.6]} 9. Nd2 {[%clk 0:02:58.7]} 9... a5 {[%clk
0:02:56.8]} 10. g4 {[%clk 0:02:56.6]} 10... c6 {[%clk 0:02:50.5]} 11. g5 {[%clk
0:02:55.9]} 11... Nfd7 {[%clk 0:02:49]} 12. h4 {[%clk 0:02:55.6]} 12... Nb6
{[%clk 0:02:43]} 13. b3 {[%clk 0:02:49.5]} 13... Bd7 {[%clk 0:02:30.6]} 14. Rc1
{[%clk 0:02:25]} 14... Rc8 {[%clk 0:02:30.1]} 15. h5 {[%clk 0:02:20]} 15... f6
{[%clk 0:01:59.1]} 16. hxg6 {[%clk 0:02:18.7]} 16... hxg6 {[%clk 0:01:59.2]} 17.
Nf3 {[%clk 0:02:05.2]} 17... f5 {[%clk 0:01:43.6]} 18. Bxc5 {[%clk 0:01:55.6]}
18... dxc5 {[%clk 0:01:43]} 19. Qd2 {[%clk 0:01:55.7]} 19... fxe4 {[%clk
0:01:18.1]} 20. Nxe4 {[%clk 0:01:56.6]} 20... Bf5 {[%clk 0:01:15.9]} 21. Ng3
{[%clk 0:01:39.6]} 21... cxd5 {[%clk 0:01:10]} 22. cxd5 {[%clk 0:01:33.8]} 22...
Bg4 {[%clk 0:00:51.5]} 23. Nh4 {[%clk 0:01:19.5]} 23... Bxe2 {[%clk 0:00:49.5]}
24. Qxe2 {[%clk 0:01:06]} 24... Qxg5 {[%clk 0:00:27]} 25. Rd1 {[%clk 0:01:05.9]}
25... Rf4 {[%clk 0:00:17.5]} 26. Nf3 {[%clk 0:00:29.9]} 26... Qg4 {[%clk
0:00:15.8]} 27. Ng1 {[%clk 0:00:16.2]} 27... e4 {[%clk 0:00:10.3]} 28. Qxg4
{[%clk 0:00:15.2]} 28... Rxg4 {[%clk 0:00:11.2]} 29. N1e2 {[%clk 0:00:15.9]}
29... c4 {[%clk 0:00:10.5]} 30. bxc4 {[%clk 0:00:15]} 30... Nxc4 {[%clk
0:00:10.2]} 31. Kf1 {[%clk 0:00:09.9]} 31... Nd6 {[%clk 0:00:09.5]} 32. Nd4
{[%clk 0:00:08.2]} 32... Bxd4 {[%clk 0:00:08.2]} 33. Rxd4 {[%clk 0:00:09.1]}
33... Rc1+ {[%clk 0:00:05.1]} 34. Kg2 {[%clk 0:00:09.2]} 34... Rc2 {[%clk
0:00:04.3]} 35. Re1 {[%clk 0:00:04.5]} 35... Rxg3+ {[%clk 0:00:04.5]} 36. Kxg3
{[%clk 0:00:04.2]} 36... Nf5+ {[%clk 0:00:05.2]} 37. Kf4 {[%clk 0:00:04.3]}
37... Nxd4 {[%clk 0:00:06.1]} 38. d6 {[%clk 0:00:04.4]} 38... Nf5 {[%clk
0:00:04.8]} 39. Ke5 {[%clk 0:00:02.3]} 39... Rd2 {[%clk 0:00:04.6]} 40. Rxe4
{[%clk 0:00:02.5]} 40... Rxd6 {[%clk 0:00:04.5]} 41. Ra4 {[%clk 0:00:02.8]}
41... Ra6 {[%clk 0:00:03.7]} 42. Rc4 {[%clk 0:00:03]} 42... Rc6 {[%clk
0:00:03.4]} 43. Rf4 {[%clk 0:00:02]} 43... Kf7 {[%clk 0:00:03.4]} 44. Ra4 {[%clk
0:00:02.4]} 44... b6 {[%clk 0:00:03.2]} 45. Kf4 {[%clk 0:00:02.9]} 45... Kf6
{[%clk 0:00:03]} 46. Kg4 {[%clk 0:00:03.4]} 46... Nd6 {[%clk 0:00:02]} 47. Rf4+
{[%clk 0:00:03.3]} 47... Ke6 {[%clk 0:00:02.5]} 48. Kg5 {[%clk 0:00:03.5]} 48...
Rc4 {[%clk 0:00:03.4]} 49. Rf6+ {[%clk 0:00:04]} 49... Ke7 {[%clk 0:00:03.6]}
50. Rf3 {[%clk 0:00:04.9]} 50... Rc5+ {[%clk 0:00:02.7]} 51. Kxg6 {[%clk
0:00:04.9]} 51... Re5 {[%clk 0:00:03.4]} 52. a3 {[%clk 0:00:04]} 52... b5 {[%clk
0:00:03.8]} 53. Rb3 {[%clk 0:00:03.6]} 53... Re4 {[%clk 0:00:03.5]} 54. f3
{[%clk 0:00:03.9]} 54... Rd4 {[%clk 0:00:03.9]} 55. Kg5 {[%clk 0:00:03.9]} 55...
b4 {[%clk 0:00:03.8]} 56. axb4 {[%clk 0:00:03.8]} 56... axb4 {[%clk 0:00:04.7]}
57. f4 {[%clk 0:00:04.3]} 57... Ke6 {[%clk 0:00:04.4]} 58. Re3+ {[%clk
0:00:04.1]} 58... Re4 {[%clk 0:00:04.1]} 59. Rd3 {[%clk 0:00:04]} 59... Nf5
{[%clk 0:00:02]} 60. Rd8 {[%clk 0:00:03.4]} 60... Ne3 {[%clk 0:00:02.2]} 61. Rb8
{[%clk 0:00:03.2]} 61... Nc4 {[%clk 0:00:01.3]} 62. Rxb4 {[%clk 0:00:02.9]}
62... Nd6 {[%clk 0:00:01.9]} 63. Rb6 {[%clk 0:00:03.5]} 63... Kd5 {[%clk
0:00:02.2]} 64. f5 {[%clk 0:00:03.9]} 64... Re5 {[%clk 0:00:02.4]} 65. Kg6
{[%clk 0:00:04.4]} 65... Rxf5 {[%clk 0:00:02.4]} 66. Rxd6+ {[%clk 0:00:04.6]}
66... Kxd6 {[%clk 0:00:03.3]} 67. Kxf5 {[%clk 0:00:05.1]} 1/2-1/2

[Event "*** Titled Tuesday Blitz"]
[Site "Chess.com"]
[Date "2020.10.20"]
[Round "7"]
[White "Illingworth"]
[Black "Durarbayli"]
[Result "1-0"]
[WhiteElo "2901"]
[BlackElo "2773"]
[TimeControl "180+1"]
[EndTime "11:21:19 PDT"]
[Termination "Illingworth won on time"]

1. d4 {[%clk 0:03:00.9]} 1... Nf6 {[%clk 0:02:59.4]} 2. c4 {[%clk 0:03:00.5]}
2... e6 {[%clk 0:02:59.8]} 3. Nc3 {[%clk 0:03:00.2]} 3... Bb4 {[%clk 0:02:57.6]}
4. Bd2 {[%clk 0:03:00.5]} 4... O-O {[%clk 0:02:54.5]} 5. Nf3 {[%clk 0:03:00.7]}
5... d5 {[%clk 0:02:53.4]} 6. e3 {[%clk 0:03:00.6]} 6... c5 {[%clk 0:02:50]} 7.
a3 {[%clk 0:02:59.9]} 7... cxd4 {[%clk 0:02:46.4]} 8. axb4 {[%clk 0:02:59.8]}
8... dxc3 {[%clk 0:02:46.4]} 9. Bxc3 {[%clk 0:03:00.7]} 9... dxc4 {[%clk
0:02:42.7]} 10. Qxd8 {[%clk 0:03:00.5]} 10... Rxd8 {[%clk 0:02:43.6]} 11. Bxc4
{[%clk 0:03:00.8]} 11... Ne4 {[%clk 0:02:39.7]} 12. Ke2 {[%clk 0:02:51]} 12...
Nc6 {[%clk 0:02:08.7]} 13. b5 {[%clk 0:02:35.6]} 13... Nxc3+ {[%clk 0:02:06.8]}
14. bxc3 {[%clk 0:02:36.5]} 14... Ne7 {[%clk 0:02:07.2]} 15. Rhd1 {[%clk
0:02:23.5]} 15... Re8 {[%clk 0:01:27.4]} 16. Ra3 {[%clk 0:02:16.4]} 16... a5
{[%clk 0:01:17.9]} 17. b6 {[%clk 0:02:00.7]} 17... f6 {[%clk 0:01:02.8]} 18. Nd4
{[%clk 0:01:36.8]} 18... Kf7 {[%clk 0:00:49.9]} 19. Nb5 {[%clk 0:01:35.7]} 19...
Rf8 {[%clk 0:00:45.9]} 20. Nc7 {[%clk 0:01:34.1]} 20... Rb8 {[%clk 0:00:44.8]}
21. Rxa5 {[%clk 0:01:20.3]} 21... Nc6 {[%clk 0:00:44.9]} 22. Ra7 {[%clk
0:01:12]} 22... Ke7 {[%clk 0:00:41.7]} 23. Ra2 {[%clk 0:00:59.3]} 23... Ne5
{[%clk 0:00:26.6]} 24. Bb3 {[%clk 0:00:50]} 24... Bd7 {[%clk 0:00:16.5]} 25. f4
{[%clk 0:00:49.7]} 25... Nc6 {[%clk 0:00:16.3]} 26. Rad2 {[%clk 0:00:45.1]}
26... Rfd8 {[%clk 0:00:12.7]} 27. h3 {[%clk 0:00:34.2]} 27... Na5 {[%clk
0:00:09.2]} 28. Ba2 {[%clk 0:00:34.1]} 28... Nc6 {[%clk 0:00:09.3]} 29. Rd6
{[%clk 0:00:34.1]} 29... Bc8 {[%clk 0:00:09.6]} 30. Rxd8 {[%clk 0:00:32.7]}
30... Nxd8 {[%clk 0:00:10.5]} 31. c4 {[%clk 0:00:29.3]} 31... Bd7 {[%clk
0:00:08.2]} 32. c5 {[%clk 0:00:29.7]} 32... Nc6 {[%clk 0:00:08.2]} 33. Rd6
{[%clk 0:00:28.2]} 33... Nd8 {[%clk 0:00:06.8]} 34. g4 {[%clk 0:00:26.6]} 34...
Nf7 {[%clk 0:00:06.9]} 35. Rd2 {[%clk 0:00:20.9]} 35... h5 {[%clk 0:00:06.4]}
36. gxh5 {[%clk 0:00:19.1]} 36... Rh8 {[%clk 0:00:06.4]} 37. Rxd7+ {[%clk
0:00:13.9]} 37... Kxd7 {[%clk 0:00:06.4]} 38. Bxe6+ {[%clk 0:00:14.6]} 38... Ke7
{[%clk 0:00:06.9]} 39. Bd5 {[%clk 0:00:07.8]} 39... Nd8 {[%clk 0:00:06.8]} 40.
Bf3 {[%clk 0:00:07.4]} 40... Kd7 {[%clk 0:00:06.4]} 41. Nb5 {[%clk 0:00:07.3]}
41... Ne6 {[%clk 0:00:06.2]} 42. Bg4 {[%clk 0:00:05.5]} 42... f5 {[%clk
0:00:05]} 43. Bxf5 {[%clk 0:00:05.6]} 43... Rxh5 {[%clk 0:00:05.5]} 44. Bxe6+
{[%clk 0:00:06.1]} 44... Kxe6 {[%clk 0:00:05.3]} 45. Nd4+ {[%clk 0:00:06.7]}
45... Kd7 {[%clk 0:00:04.5]} 46. Nb3 {[%clk 0:00:06.5]} 46... Rxh3 {[%clk
0:00:03.7]} 47. Kd3 {[%clk 0:00:07]} 47... Rh1 {[%clk 0:00:03.7]} 48. Kc4 {[%clk
0:00:07.1]} 48... Rb1 {[%clk 0:00:03.4]} 49. Nd4 {[%clk 0:00:07.1]} 49... Rc1+
{[%clk 0:00:03.4]} 50. Kd5 {[%clk 0:00:07.6]} 50... Rd1 {[%clk 0:00:03.6]} 51.
e4 {[%clk 0:00:08]} 51... Ke7 {[%clk 0:00:04.2]} 52. f5 {[%clk 0:00:08.4]} 52...
Rd2 {[%clk 0:00:02.8]} 53. Ke5 {[%clk 0:00:07.9]} 53... Rd1 {[%clk 0:00:02.5]}
54. Kd5 {[%clk 0:00:07.7]} 54... Kd7 {[%clk 0:00:02.9]} 55. e5 {[%clk
0:00:08.2]} 55... Rd2 {[%clk 0:00:03.2]} 56. e6+ {[%clk 0:00:08.6]} 56... Ke7
{[%clk 0:00:03.7]} 57. Kc4 {[%clk 0:00:09.2]} 57... Rd1 {[%clk 0:00:03.7]} 58.
c6 {[%clk 0:00:09.6]} 58... Rc1+ {[%clk 0:00:01.4]} 59. Kd5 {[%clk 0:00:10]}
59... Rb1 {[%clk 0:00:01.4]} 60. c7 {[%clk 0:00:09.8]} 60... Rc1 {[%clk
0:00:01.9]} 61. Ke5 {[%clk 0:00:09.4]} 61... Rc5+ {[%clk 0:00:01.4]} 62. Kf4
{[%clk 0:00:10]} 62... Kd6 {[%clk 0:00:02.1]} 63. Kg5 {[%clk 0:00:09.9]} 63...
Rc4 {[%clk 0:00:03]} 64. Nb5+ {[%clk 0:00:09.8]} 64... Ke7 {[%clk 0:00:03.6]}
65. Na7 {[%clk 0:00:10.7]} 65... g6 {[%clk 0:00:01.1]} 66. c8=Q {[%clk
0:00:09.9]} 66... Rxc8 {[%clk 0:00:02]} 67. Nxc8+ {[%clk 0:00:10.5]} 67... Kd8
{[%clk 0:00:02.4]} 68. Nd6 {[%clk 0:00:10.8]} 1-0

[Event "*** Titled Tuesday Blitz"]
[Site "Chess.com"]
[Date "2020.10.20"]
[Round "7"]
[White "tptagain"]
[Black "swimmerchess"]
[Result "1-0"]
[WhiteElo "2910"]
[BlackElo "2775"]
[TimeControl "180+1"]
[EndTime "11:21:23 PDT"]
[Termination "tptagain won by checkmate"]

1. e4 {[%clk 0:03:00.9]} 1... c5 {[%clk 0:02:58.9]} 2. Nc3 {[%clk 0:03:01]} 2...
a6 {[%clk 0:02:58.9]} 3. g3 {[%clk 0:03:00.9]} 3... b5 {[%clk 0:02:58.9]} 4. Bg2
{[%clk 0:03:01.4]} 4... Bb7 {[%clk 0:02:59.5]} 5. d3 {[%clk 0:03:02]} 5... e6
{[%clk 0:02:59.6]} 6. Nh3 {[%clk 0:03:02.7]} 6... Nf6 {[%clk 0:02:58.8]} 7. O-O
{[%clk 0:02:57.9]} 7... b4 {[%clk 0:02:59.1]} 8. Na4 {[%clk 0:02:55.3]} 8... d5
{[%clk 0:02:59.6]} 9. exd5 {[%clk 0:02:53.1]} 9... Bxd5 {[%clk 0:03:00.5]} 10.
Bxd5 {[%clk 0:02:51.5]} 10... Qxd5 {[%clk 0:03:00.5]} 11. Nf4 {[%clk 0:02:48]}
11... Qb7 {[%clk 0:03:00]} 12. c3 {[%clk 0:02:44.6]} 12... a5 {[%clk 0:02:58.5]}
13. d4 {[%clk 0:02:41.9]} 13... cxd4 {[%clk 0:02:54.1]} 14. cxd4 {[%clk
0:02:42.2]} 14... Nbd7 {[%clk 0:02:48.7]} 15. d5 {[%clk 0:02:33.5]} 15... e5
{[%clk 0:02:41.1]} 16. d6 {[%clk 0:02:14]} 16... Ra6 {[%clk 0:02:40.9]} 17. Re1
{[%clk 0:01:54.3]} 17... Rxd6 {[%clk 0:02:33.4]} 18. Qe2 {[%clk 0:01:52]} 18...
Be7 {[%clk 0:02:32.8]} 19. Nd3 {[%clk 0:01:34.9]} 19... O-O {[%clk 0:02:31.6]}
20. Bg5 {[%clk 0:01:22.4]} 20... Qb5 {[%clk 0:02:29.5]} 21. Ndc5 {[%clk
0:01:22.8]} 21... Qxe2 {[%clk 0:02:13.9]} 22. Rxe2 {[%clk 0:01:23.7]} 22... Nxc5
{[%clk 0:02:14.8]} 23. Nxc5 {[%clk 0:01:23.7]} 23... Rd5 {[%clk 0:02:15.7]} 24.
Bxf6 {[%clk 0:01:20.1]} 24... gxf6 {[%clk 0:02:08.1]} 25. Ne4 {[%clk 0:01:07.1]}
25... Rc8 {[%clk 0:02:08.5]} 26. g4 {[%clk 0:01:04.5]} 26... a4 {[%clk
0:02:01.6]} 27. Kg2 {[%clk 0:01:03.7]} 27... Rc4 {[%clk 0:01:55.7]} 28. h3
{[%clk 0:01:01.6]} 28... Bd8 {[%clk 0:01:51.2]} 29. b3 {[%clk 0:00:59.2]} 29...
Rcd4 {[%clk 0:01:44.9]} 30. bxa4 {[%clk 0:00:58]} 30... Ra5 {[%clk 0:01:45.1]}
31. Rc1 {[%clk 0:00:50.8]} 31... Rxa4 {[%clk 0:01:38.9]} 32. Rc8 {[%clk
0:00:50.7]} 32... Kg7 {[%clk 0:01:31.7]} 33. Ng3 {[%clk 0:00:50.3]} 33... Kf8
{[%clk 0:01:28.2]} 34. Nf5 {[%clk 0:00:47.1]} 34... Rd3 {[%clk 0:01:24.4]} 35.
Rb8 {[%clk 0:00:44.7]} 35... Ke8 {[%clk 0:01:17.6]} 36. Rc2 {[%clk 0:00:42.3]}
36... Kd7 {[%clk 0:01:03.4]} 37. Rb7+ {[%clk 0:00:34.3]} 37... Ke8 {[%clk
0:00:59]} 38. Rb2 {[%clk 0:00:26.2]} 38... Ba5 {[%clk 0:00:53.3]} 39. Re7+
{[%clk 0:00:23.3]} 39... Kf8 {[%clk 0:00:45.8]} 40. Ra7 {[%clk 0:00:23.5]} 40...
Raa3 {[%clk 0:00:41]} 41. Ra8+ {[%clk 0:00:12.8]} 41... Rd8 {[%clk 0:00:35.1]}
42. Ra6 {[%clk 0:00:12.9]} 42... Rdd3 {[%clk 0:00:29.6]} 43. Rxf6 {[%clk
0:00:12.9]} 43... Rxh3 {[%clk 0:00:24.7]} 44. Ra6 {[%clk 0:00:11]} 44... Rhd3
{[%clk 0:00:22.5]} 45. Re2 {[%clk 0:00:11.3]} 45... Bc7 {[%clk 0:00:20.6]} 46.
Rc6 {[%clk 0:00:10.8]} 46... Rac3 {[%clk 0:00:20]} 47. Rh6 {[%clk 0:00:10.4]}
47... Kg8 {[%clk 0:00:19]} 48. Re4 {[%clk 0:00:10.5]} 48... Rc2 {[%clk
0:00:13.5]} 49. Rxb4 {[%clk 0:00:09.8]} 49... Rdd2 {[%clk 0:00:14]} 50. Rc6
{[%clk 0:00:05.4]} 50... Rxf2+ {[%clk 0:00:12.6]} 51. Kg3 {[%clk 0:00:05.7]}
51... Rxc6 {[%clk 0:00:12.2]} 52. Kxf2 {[%clk 0:00:05.4]} 52... Rb6 {[%clk
0:00:11.7]} 53. Rc4 {[%clk 0:00:03.7]} 53... Rb7 {[%clk 0:00:11.5]} 54. Kf3
{[%clk 0:00:04.3]} 54... f6 {[%clk 0:00:11.8]} 55. a4 {[%clk 0:00:04.4]} 55...
Kf7 {[%clk 0:00:12.1]} 56. Ke4 {[%clk 0:00:05]} 56... Ke6 {[%clk 0:00:12.5]} 57.
Rc6+ {[%clk 0:00:05.4]} 57... Kf7 {[%clk 0:00:12.7]} 58. Kd5 {[%clk 0:00:06.1]}
58... Ba5 {[%clk 0:00:12.4]} 59. Rc5 {[%clk 0:00:05.6]} 59... Ra7 {[%clk
0:00:12.2]} 60. Nd6+ {[%clk 0:00:05.4]} 60... Kg6 {[%clk 0:00:12.6]} 61. Ne4
{[%clk 0:00:05.4]} 61... Be1 {[%clk 0:00:12]} 62. Rc6 {[%clk 0:00:05.3]} 62...
Ra5+ {[%clk 0:00:11.8]} 63. Ke6 {[%clk 0:00:05.5]} 63... Rxa4 {[%clk 0:00:12.3]}
64. Nxf6 {[%clk 0:00:05.9]} 64... Rf4 {[%clk 0:00:12.1]} 65. Nd5 {[%clk
0:00:05.6]} 65... Rxg4 {[%clk 0:00:12.2]} 66. Kxe5+ {[%clk 0:00:05.5]} 66... Kg5
{[%clk 0:00:12.8]} 67. Rc8 {[%clk 0:00:05.1]} 67... h5 {[%clk 0:00:12.2]} 68.
Rh8 {[%clk 0:00:05.1]} 68... Bg3+ {[%clk 0:00:11.7]} 69. Ke6 {[%clk 0:00:04.9]}
69... Re4+ {[%clk 0:00:11.8]} 70. Kf7 {[%clk 0:00:05.4]} 70... h4 {[%clk
0:00:12.2]} 71. Nf6 {[%clk 0:00:04.1]} 71... Rf4 {[%clk 0:00:12.1]} 72. Rh5#
{[%clk 0:00:04.4]} 1-0

[Event "*** Titled Tuesday Blitz"]
[Site "Chess.com"]
[Date "2020.10.20"]
[Round "7"]
[White "Flopezin"]
[Black "grunbergmihai"]
[Result "0-1"]
[WhiteElo "2358"]
[BlackElo "2509"]
[TimeControl "180+1"]
[EndTime "11:21:27 PDT"]
[Termination "grunbergmihai won on time"]

1. c4 {[%clk 0:03:00.9]} 1... Nf6 {[%clk 0:02:59.5]} 2. Nc3 {[%clk 0:03:01]}
2... g6 {[%clk 0:03:00.4]} 3. e4 {[%clk 0:03:01.2]} 3... d6 {[%clk 0:03:00.5]}
4. d4 {[%clk 0:03:01.6]} 4... Bg7 {[%clk 0:03:00.6]} 5. Be2 {[%clk 0:03:02.2]}
5... O-O {[%clk 0:03:01.4]} 6. Nf3 {[%clk 0:03:02.7]} 6... c6 {[%clk 0:03:01]}
7. h3 {[%clk 0:02:57.4]} 7... a6 {[%clk 0:03:00.3]} 8. a4 {[%clk 0:02:52.5]}
8... a5 {[%clk 0:02:59.9]} 9. g4 {[%clk 0:02:47.7]} 9... Na6 {[%clk 0:03:00.8]}
10. Be3 {[%clk 0:02:45.1]} 10... Nb4 {[%clk 0:02:55.8]} 11. Nd2 {[%clk
0:02:29.5]} 11... e5 {[%clk 0:02:54.8]} 12. d5 {[%clk 0:02:29.6]} 12... cxd5
{[%clk 0:02:52.7]} 13. cxd5 {[%clk 0:02:27.4]} 13... Nd7 {[%clk 0:02:51.5]} 14.
O-O {[%clk 0:02:19.4]} 14... f5 {[%clk 0:02:46.2]} 15. f3 {[%clk 0:02:12.3]}
15... Nc5 {[%clk 0:02:25.2]} 16. Nb3 {[%clk 0:02:07.7]} 16... b6 {[%clk
0:02:13.5]} 17. Nxc5 {[%clk 0:01:50.5]} 17... bxc5 {[%clk 0:02:12.7]} 18. Nb1
{[%clk 0:01:49.4]} 18... fxe4 {[%clk 0:02:03.3]} 19. fxe4 {[%clk 0:01:49.3]}
19... Rxf1+ {[%clk 0:02:01.6]} 20. Bxf1 {[%clk 0:01:49.5]} 20... Qh4 {[%clk
0:01:52.7]} 21. Bf2 {[%clk 0:01:46]} 21... Qg5 {[%clk 0:01:52.7]} 22. Qd2 {[%clk
0:01:34.5]} 22... Bh6 {[%clk 0:01:45.2]} 23. Qxg5 {[%clk 0:01:28.2]} 23... Bxg5
{[%clk 0:01:46.1]} 24. Nc3 {[%clk 0:01:28.4]} 24... Nc2 {[%clk 0:01:45.7]} 25.
Rd1 {[%clk 0:01:22.2]} 25... Nd4 {[%clk 0:01:42.4]} 26. Nb5 {[%clk 0:01:15.1]}
26... Be7 {[%clk 0:01:41.7]} 27. Bxd4 {[%clk 0:01:13]} 27... exd4 {[%clk
0:01:37.7]} 28. Na3 {[%clk 0:01:08.1]} 28... Rb8 {[%clk 0:01:35.6]} 29. Bb5
{[%clk 0:01:05.4]} 29... h5 {[%clk 0:01:32.8]} 30. gxh5 {[%clk 0:01:02.6]} 30...
gxh5 {[%clk 0:01:32.2]} 31. Kh2 {[%clk 0:00:58.5]} 31... Kh7 {[%clk 0:01:19.5]}
32. Nc4 {[%clk 0:00:57.4]} 32... Ra8 {[%clk 0:01:19.1]} 33. Rf1 {[%clk
0:00:54.1]} 33... Kg6 {[%clk 0:01:15.4]} 34. Nb6 {[%clk 0:00:39.1]} 34... Rb8
{[%clk 0:01:12.9]} 35. Nc4 {[%clk 0:00:39.7]} 35... Ra8 {[%clk 0:00:57.6]} 36.
Nb6 {[%clk 0:00:38.8]} 36... Rb8 {[%clk 0:00:57.3]} 37. Nc4 {[%clk 0:00:38.9]}
37... Bf6 {[%clk 0:00:56.9]} 38. Nxa5 {[%clk 0:00:24.6]} 38... d3 {[%clk
0:00:56]} 39. Nc6 {[%clk 0:00:20.5]} 39... Ra8 {[%clk 0:00:52.2]} 40. b3 {[%clk
0:00:20]} 40... d2 {[%clk 0:00:50.4]} 41. e5 {[%clk 0:00:17.9]} 41... dxe5
{[%clk 0:00:47.4]} 42. Rd1 {[%clk 0:00:17.4]} 42... Bg5 {[%clk 0:00:39.1]} 43.
Nxe5+ {[%clk 0:00:17.2]} 43... Kf5 {[%clk 0:00:38.8]} 44. Nf3 {[%clk 0:00:17.6]}
44... Bf4+ {[%clk 0:00:34.7]} 45. Kg2 {[%clk 0:00:18.2]} 45... Bb7 {[%clk
0:00:33.6]} 46. Bc6 {[%clk 0:00:16.5]} 46... Bxc6 {[%clk 0:00:32.3]} 47. dxc6
{[%clk 0:00:17.4]} 47... Rd8 {[%clk 0:00:31.8]} 48. c7 {[%clk 0:00:17.8]} 48...
Bxc7 {[%clk 0:00:30.7]} 49. Rxd2 {[%clk 0:00:17.3]} 49... Rg8+ {[%clk
0:00:22.8]} 50. Kf2 {[%clk 0:00:17.8]} 50... Bb6 {[%clk 0:00:20]} 51. Rd5+
{[%clk 0:00:17]} 51... Ke4 {[%clk 0:00:17.9]} 52. Re5+ {[%clk 0:00:15.9]} 52...
Kf4 {[%clk 0:00:17.5]} 53. Re6 {[%clk 0:00:16.8]} 53... Rb8 {[%clk 0:00:15.3]}
54. Ke2 {[%clk 0:00:15.5]} 54... Ba5 {[%clk 0:00:14.4]} 55. Nd2 {[%clk 0:00:15]}
55... Bxd2 {[%clk 0:00:13.4]} 56. Kxd2 {[%clk 0:00:15.9]} 56... Rxb3 {[%clk
0:00:13.8]} 57. Rc6 {[%clk 0:00:16.5]} 57... Rxh3 {[%clk 0:00:12.9]} 58. Rxc5
{[%clk 0:00:17]} 58... h4 {[%clk 0:00:12.8]} 59. Kc2 {[%clk 0:00:15.1]} 59...
Ra3 {[%clk 0:00:11.9]} 60. a5 {[%clk 0:00:15.5]} 60... h3 {[%clk 0:00:11.5]} 61.
Kb2 {[%clk 0:00:14.9]} 61... Ra4 {[%clk 0:00:10.8]} 62. Kb3 {[%clk 0:00:15]}
62... Ra1 {[%clk 0:00:10.8]} 63. Kb2 {[%clk 0:00:15.6]} 63... h2 {[%clk
0:00:08.5]} 64. Rc4+ {[%clk 0:00:07.7]} 64... Ke5 {[%clk 0:00:08]} 65. Rh4
{[%clk 0:00:07.2]} 65... h1=Q {[%clk 0:00:07.7]} 66. Rxh1 {[%clk 0:00:07.8]}
66... Rxh1 {[%clk 0:00:07.3]} 67. a6 {[%clk 0:00:08.7]} 67... Rh6 {[%clk
0:00:06.6]} 68. a7 {[%clk 0:00:09.6]} 68... Ra6 {[%clk 0:00:06.3]} 0-1